fUST/lending_fUST_20240512
["ID","MTS","AMOUNT","RATE_DAILY","PERIOD"]
[326849521,1715509898373,-859.74,0.00069041,120]
[326849522,1715509898385,-484.12867261,0.00069041,120]
[326849523,1715509898399,-1019.78,0.00069041,120]
[326849524,1715509898413,-500.0,0.00069041,120]
[326849525,1715509898426,-1222.61,0.00069041,120]
[326849526,1715509898438,-500.0,0.00069041,120]
[326849527,1715509898451,-1076.09,0.00069041,4]
[326849528,1715509898463,-500.0,0.00069041,120]
[326849529,1715509898475,-777.18,0.00069041,120]
[326849530,1715509898488,-623.85,0.00069041,120]
[326849531,1715509898501,-879.42,0.00069041,120]
[326849532,1715509898513,-300.0,0.00069041,7]
[326849533,1715509898526,-500.0,0.00069041,120]
[326849534,1715509898538,-1022.56,0.00069041,120]
[326849535,1715509898551,-1415.7,0.00069041,120]
[326849536,1715509898563,-702.94,0.00069041,120]
[326849537,1715509898575,-676.96,0.00069041,120]
[326849538,1715509898588,-1146.59,0.00069041,120]
[326849539,1715509898600,-846.45,0.00069041,120]
[326849540,1715509898613,-490.22370148,0.00069041,120]
[326849541,1715509898626,-506.08,0.00069041,120]
[326849542,1715509898638,-694.21,0.00069041,120]
[326849543,1715509898650,-534.57,0.00069041,120]
[326849544,1715509898665,-628.13,0.00069041,120]
[326849545,1715509898677,-500.0,0.00069041,120]
[326849546,1715509898689,-563.98,0.00069041,120]
[326849547,1715509898702,-500.0,0.00069041,120]
[326849548,1715509898714,-500.0,0.00069041,120]
[326849549,1715509898726,-1333.29,0.00069041,120]
[326849550,1715509898739,-2080.97,0.00069041,120]
[326849551,1715509898752,-293.78859406,0.00069041,120]
[326849552,1715509898764,-697.5,0.00069041,120]
[326849553,1715509898777,-500.0,0.00069041,120]
[326849554,1715509898789,-1146.84,0.00069041,120]
[326849555,1715509898803,-500.0,0.00069041,120]
[326849556,1715509898815,-500.0,0.00069041,120]
[326849557,1715509898828,-500.0,0.00069041,120]
[326849558,1715509898840,-1062.31,0.00069041,120]
[326849559,1715509898852,-887.25,0.00069041,120]
[326849560,1715509899049,-500.0,0.00069041,120]
[326849561,1715509899059,-884.99,0.00069041,120]
[326849562,1715509899068,-1945.84,0.00069041,120]
[326849563,1715509899078,-1101.29,0.00069041,120]
[326849564,1715509899087,-683.11,0.00069041,120]
[326849565,1715509899096,-500.0,0.00069041,120]
[326849566,1715509899105,-500.0,0.00069041,120]
[326849567,1715509899115,-634.75,0.00069041,120]
[326849568,1715509899124,-1202.07,0.00069041,120]
[326849569,1715509899133,-500.0,0.00069041,120]
[326849570,1715509899142,-652.77,0.00069041,120]
[326849571,1715509899152,-665.8,0.00069041,120]
[326849572,1715509899162,-2405.12,0.00069041,120]
[326849573,1715509899172,-1296.67,0.00069041,120]
[326849574,1715509899181,-500.0,0.00069041,120]
[326849575,1715509899190,-515.15,0.00069041,120]
[326849576,1715509899205,-1711.77,0.00069041,120]
[326849577,1715509899215,-500.0,0.00069041,120]
[326849578,1715509899225,-634.68,0.00069041,120]
[326849579,1715509899234,-674.93,0.00069041,120]
[326849580,1715509899244,-669.18,0.00069041,120]
[326849581,1715509899253,-662.7,0.00069041,120]
[326849582,1715509899263,-672.84,0.00069041,120]
[326849583,1715509899272,-500.0,0.00069041,120]
[326849584,1715509899281,-1082.38,0.00069041,120]
[326849585,1715509899290,-500.0,0.00069041,120]
[326849586,1715509899300,-2510.37,0.00069041,120]
[326849587,1715509899309,-4167.16,0.00069041,120]
[326849588,1715509899318,-1216.89,0.00069041,7]
[326849589,1715509899327,-568.37,0.00069041,120]
[326849590,1715509899336,-500.0,0.00069041,120]
[326849591,1715509899346,-634.17,0.00069041,120]
[326849592,1715509899355,-711.19,0.00069041,120]
[326849593,1715509899364,-645.64,0.00069041,120]
[326849594,1715509899373,-634.59,0.00069041,120]
[326849595,1715509899382,-522.61,0.00069041,120]
[326849596,1715509899391,-1199.73,0.00069041,120]
[326849597,1715509899400,-852.85,0.00069041,120]
[326849598,1715509899411,-500.0,0.00069041,120]
[326849599,1715509899420,-625.2,0.00069041,120]
[326849600,1715509899429,-329.56329189,0.00069041,120]
[326849601,1715509899439,-728.74,0.00069041,120]
[326849602,1715509899448,-501.04,0.00069041,120]
[326849603,1715509899457,-588.33,0.00069041,120]
[326849604,1715509899467,-1576.44,0.00069041,120]
[326849605,1715509899476,-500.0,0.00069041,120]
[326849606,1715509899485,-642.78,0.00069041,120]
[326849607,1715509899494,-500.0,0.00069041,120]
[326849608,1715509899504,-1474.83,0.00069041,120]
[326849609,1715509899513,-500.0,0.00069041,120]
[326849610,1715509899522,-1138.94,0.00069041,120]
[326849611,1715509899532,-500.0,0.00069041,120]
[326849612,1715509899541,-2052.53,0.00069041,120]
[326849613,1715509899550,-3343.91,0.00069041,120]
[326849614,1715509899559,-500.0,0.00069041,120]
[326849615,1715509899569,-1280.34,0.00069041,120]
[326849616,1715509899578,-589.15,0.00069041,120]
[326849617,1715509899588,-990.89,0.00069041,120]
[326849618,1715509899597,-1022.63,0.00069041,120]
[326849619,1715509899606,-1377.96,0.00069041,120]
[326849620,1715509899615,-849.72,0.00069041,120]
[326849621,1715509899624,-500.0,0.00069041,120]
[326849622,1715509899634,-2169.41,0.00069041,120]
[326849623,1715509899643,-658.6,0.00069041,120]
[326849624,1715509899652,-926.02,0.00069041,120]
[326849625,1715509899662,-2031.16,0.00069041,120]
[326849626,1715509899672,-500.0,0.00069041,120]
[326849627,1715509899681,-1300.61,0.00069041,120]
[326849628,1715509899691,-4158.51,0.00069041,120]
[326849629,1715509899700,-531.15680966,0.00069041,120]
[326849630,1715509899709,-1707.07,0.00069041,120]
[326849631,1715509899718,-747.04,0.00069041,120]
[326849632,1715509899727,-500.0,0.00069041,120]
[326849633,1715509899736,-610.04,0.00069041,120]
[326849634,1715509899745,-809.09,0.00069041,120]
[326849635,1715509899755,-616.93,0.00069041,120]
[326849636,1715509899764,-555.14,0.00069041,120]
[326849637,1715509899773,-663.17,0.00069041,60]
[326849638,1715509899782,-1965.65,0.00069041,120]
[326849639,1715509899792,-500.0,0.00069041,120]
[326849640,1715509899801,-1720.11,0.00069041,120]
[326849641,1715509899810,-1258.86,0.00069041,7]
[326849642,1715509899820,-531.16,0.00069041,120]
[326849643,1715509899829,-500.0,0.00069041,120]
[326849644,1715509899838,-1275.8,0.00069041,120]
[326849645,1715509899847,-1330.34,0.00069041,120]
[326849646,1715509899857,-1477.44,0.00069041,120]
[326849647,1715509899866,-500.0,0.00069041,120]
[326849648,1715509899875,-500.0,0.00069041,120]
[326849649,1715509899885,-1415.41,0.00069041,120]
[326849650,1715509899894,-790.3,0.00069041,120]
[326849651,1715509899903,-500.0,0.00069041,120]
[326849652,1715509899912,-1299.65,0.00069041,120]
[326849653,1715509899921,-631.96,0.00069041,120]
[326849654,1715509899931,-775.43,0.00069041,120]
[326849655,1715509899941,-500.0,0.00069041,120]
[326849656,1715509899951,-4428.92,0.00069041,120]
[326849657,1715509899960,-974.56,0.00069041,120]
[326849658,1715509899970,-1052.97,0.00069041,120]
[326849659,1715509899980,-3584.43,0.00069041,120]
[326849660,1715509899989,-721.17,0.00069041,120]
[326849661,1715509899999,-661.04,0.00069041,120]
[326849662,1715509900008,-625.85,0.00069041,120]
[326849663,1715509900017,-614.26,0.00069041,120]
[326849664,1715509900027,-980.18,0.00069041,120]
[326849665,1715509900037,-1131.83,0.00069041,120]
[326849666,1715509900046,-583.64,0.00069041,120]
[326849667,1715509900056,-513.88,0.00069041,120]
[326849668,1715509900065,-2410.3,0.00069041,120]
[326849669,1715509900074,-5121.64,0.00069041,120]
[326849670,1715509900083,-1457.89,0.00069041,120]
[326849671,1715509900092,-719.29,0.00069041,120]
[326849672,1715509900101,-1228.7,0.00069041,120]
[326849673,1715509900111,-500.0,0.00069041,120]
[326849674,1715509900120,-1264.94,0.00069041,120]
[326849675,1715509900129,-1513.78,0.00069041,120]
[326849676,1715509900138,-673.28,0.00069041,120]
[326849677,1715509900147,-694.76,0.00069041,120]
[326849678,1715509900157,-1272.39,0.00069041,120]
[326849679,1715509900167,-2272.31,0.00069041,120]
[326849680,1715509900176,-500.0,0.00069041,120]
[326849681,1715509900185,-11483.2,0.00069041,120]
[326849682,1715509900196,-500.0,0.00069041,7]
[326849683,1715509900208,-606.15,0.00069041,120]
[326849684,1715509900218,-765.03,0.00069041,120]
[326849685,1715509900227,-500.0,0.00069041,120]
[326849686,1715509900237,-910.45,0.00069041,120]
[326849687,1715509900247,-1594.77,0.00069041,120]
[326849688,1715509900256,-749.73,0.00069041,120]
[326849689,1715509900265,-1094.1,0.00069041,120]
[326849690,1715509900274,-760.68,0.00069041,120]
[326849691,1715509900285,-1439.15,0.00069041,120]
[326849692,1715509900294,-728.36,0.00069041,120]
[326849693,1715509900304,-554.07,0.00069041,120]
[326849694,1715509900313,-851.93,0.00069041,120]
[326849695,1715509900322,-21061.66,0.00069041,120]
[326849696,1715509900332,-1275.67,0.00069041,120]
[326849697,1715509900341,-697.89,0.00069041,120]
[326849698,1715509900350,-1584.34,0.00069041,120]
[326849699,1715509900360,-1080.54,0.00069041,120]
[326849700,1715509900369,-500.0,0.00069041,120]
[326849701,1715509900378,-151.0,0.00069753,120]
[326849702,1715509900387,-557.0,0.00069933,120]
[326849703,1715509900396,-5000.0,0.0007,47]
[326849704,1715509900408,-719.55106409,0.0007,120]
[326849705,1715509900426,-975.24183163,0.0007,7]
[326849706,1715509900435,-1000.0,0.0007,120]
[326849707,1715509900444,-2498.53867206,0.0007,120]
[326849708,1715509900453,-2794.2677296,0.0007,120]
[326849709,1715509900462,-500.0,0.00070136,120]
[326849710,1715509900472,-500.0,0.00070136,120]
[326849711,1715509900481,-792.18,0.00070136,120]
[326849712,1715509900490,-700.0,0.00070136,120]
[326849713,1715509900499,-555.41854292,0.00070136,120]
[326849714,1715509900509,-500.0,0.00070136,120]
[326849715,1715509900518,-500.0,0.00070136,120]
[326849716,1715509900527,-687.88,0.00070136,120]
[326849717,1715509900537,-1184.42,0.00070136,120]
[326849718,1715509900546,-622.05,0.00070136,120]
[326849719,1715509900556,-500.0,0.00070136,120]
[326849720,1715509900566,-1188.88,0.00070136,120]
[326849721,1715509900575,-514.31319135,0.00070136,120]
[326849722,1715509900585,-664.65,0.00070136,120]
[326849723,1715509900594,-500.0,0.00070136,120]
[326849724,1715509900603,-706.45,0.00070136,120]
[326849725,1715509900613,-589.94,0.00070136,120]
[326849726,1715509900622,-500.0,0.00070136,120]
[326849727,1715509900631,-500.0,0.00070136,120]
[326849728,1715509900640,-718.87,0.00070136,120]
[326849729,1715509900649,-668.81,0.00070136,120]
[326849730,1715509900660,-1198.11,0.00070136,120]
[326849731,1715509900669,-859.74,0.00070136,120]
[326849732,1715509900678,-1019.78,0.00070136,120]
[326849733,1715509900687,-519.54196261,0.00070136,120]
[326849734,1715509900696,-1222.61,0.00070136,120]
[326849735,1715509900706,-500.0,0.00070136,120]
[326849736,1715509900715,-1076.09,0.00070136,4]
[326849737,1715509900725,-529.0687654,0.00070136,120]
[326849738,1715509900734,-777.18,0.00070136,120]
[326849739,1715509900744,-623.85,0.00070136,120]
[326849740,1715509900754,-300.0,0.00070136,7]
[326849741,1715509900763,-879.42,0.00070136,120]
[326849742,1715509900773,-500.0,0.00070136,120]
[326849743,1715509900782,-1022.56,0.00070136,120]
[326849744,1715509900792,-1415.7,0.00070136,120]
[326849745,1715509900801,-702.94,0.00070136,120]
[326849746,1715509900811,-676.96,0.00070136,120]
[326849747,1715509900820,-1146.59,0.00070136,120]
[326849748,1715509900829,-846.45,0.00070136,120]
[326849749,1715509900839,-506.08,0.00070136,120]
[326849750,1715509900848,-694.21,0.00070136,120]
[326849751,1715509900857,-534.57,0.00070136,120]
[326849752,1715509900867,-628.13,0.00070136,120]
[326849753,1715509900877,-417.1999502,0.00070136,120]
[326849754,1715509900887,-563.98,0.00070136,120]
[326849755,1715509900896,-500.0,0.00070136,120]
[326849756,1715509900908,-500.0,0.00070136,120]
[326849757,1715509900918,-1333.29,0.00070136,120]
[326849758,1715509900927,-2080.97,0.00070136,120]
[326849759,1715509900936,-697.5,0.00070136,120]
[326849760,1715509900946,-500.0,0.00070136,120]
[326849761,1715509900956,-1146.84,0.00070136,120]
[326849762,1715509900966,-500.0,0.00070136,120]
[326849763,1715509900975,-596.83831671,0.00070136,120]
[326849764,1715509900985,-500.0,0.00070136,120]
[326849765,1715509900994,-1062.31,0.00070136,120]
[326849766,1715509901004,-887.25,0.00070136,120]
[326849767,1715509901013,-500.0,0.00070136,120]
[326849768,1715509901023,-884.99,0.00070136,120]
[326849769,1715509901032,-1945.84,0.00070136,120]
[326849770,1715509901041,-1101.29,0.00070136,120]
[326849771,1715509901051,-683.11,0.00070136,120]
[326849772,1715509901060,-500.0,0.00070136,120]
[326849773,1715509901069,-500.0,0.00070136,120]
[326849774,1715509901079,-634.75,0.00070136,120]
[326849775,1715509901088,-1202.07,0.00070136,120]
[326849776,1715509901098,-500.0,0.00070136,120]
[326849777,1715509901107,-652.77,0.00070136,120]
[326849778,1715509901116,-665.8,0.00070136,120]
[326849779,1715509901125,-2405.12,0.00070136,120]
[326849780,1715509901135,-1296.67,0.00070136,120]
[326849781,1715509901145,-500.0,0.00070136,120]
[326849782,1715509901154,-515.15,0.00070136,120]
[326849783,1715509901167,-1711.77,0.00070136,120]
[326849784,1715509901176,-500.0,0.00070136,120]
[326849785,1715509901185,-634.68,0.00070136,120]
[326849786,1715509901195,-674.93,0.00070136,120]
[326849787,1715509901206,-669.18,0.00070136,120]
[326849788,1715509901216,-662.7,0.00070136,120]
[326849789,1715509901226,-672.84,0.00070136,120]
[326849790,1715509901236,-500.0,0.00070136,120]
[326849791,1715509901246,-1082.38,0.00070136,120]
[326849792,1715509901257,-500.0,0.00070136,120]
[326849793,1715509901266,-2510.37,0.00070136,120]
[326849794,1715509901275,-4167.16,0.00070136,120]
[326849795,1715509901284,-1216.89,0.00070136,7]
[326849796,1715509901294,-568.37,0.00070136,120]
[326849797,1715509901303,-500.0,0.00070136,120]
[326849798,1715509901313,-634.17,0.00070136,120]
[326849799,1715509901322,-711.19,0.00070136,120]
[326849800,1715509901331,-645.64,0.00070136,120]
[326849801,1715509901340,-634.59,0.00070136,120]
[326849802,1715509901350,-522.61,0.00070136,120]
[326849803,1715509901359,-1199.73,0.00070136,120]
[326849804,1715509901368,-852.85,0.00070136,120]
[326849805,1715509901377,-500.0,0.00070136,120]
[326849806,1715509901387,-625.2,0.00070136,120]
[326849807,1715509901396,-728.74,0.00070136,120]
[326849808,1715509901406,-501.04,0.00070136,120]
[326849809,1715509901416,-588.33,0.00070136,120]
[326849810,1715509901548,-1576.44,0.00070136,120]
[326849811,1715509901560,-500.0,0.00070136,120]
[326849812,1715509901570,-642.78,0.00070136,120]
[326849813,1715509901579,-500.0,0.00070136,120]
[326849814,1715509901588,-1474.83,0.00070136,120]
[326849815,1715509901598,-500.0,0.00070136,120]
[326849816,1715509901607,-1138.94,0.00070136,120]
[326849817,1715509901617,-500.0,0.00070136,120]
[326849818,1715509901626,-2052.53,0.00070136,120]
[326849819,1715509901635,-3343.91,0.00070136,120]
[326849820,1715509901645,-500.0,0.00070136,120]
[326849821,1715509901654,-1280.34,0.00070136,120]
[326849822,1715509901665,-589.15,0.00070136,120]
[326849823,1715509901674,-990.89,0.00070136,120]
[326849824,1715509901682,-1022.63,0.00070136,120]
[326849825,1715509901692,-1377.96,0.00070136,120]
[326849826,1715509901701,-849.72,0.00070136,120]
[326849827,1715509901710,-500.0,0.00070136,120]
[326849828,1715509901720,-2169.41,0.00070136,120]
[326849829,1715509901729,-658.6,0.00070136,120]
[326849830,1715509901739,-926.02,0.00070136,120]
[326849831,1715509901749,-2031.16,0.00070136,120]
[326849832,1715509901758,-500.0,0.00070136,120]
[326849833,1715509901767,-1300.61,0.00070136,120]
[326849834,1715509901777,-4158.51,0.00070136,120]
[326849835,1715509901787,-1707.07,0.00070136,120]
[326849836,1715509901796,-747.04,0.00070136,120]
[326849837,1715509901805,-500.0,0.00070136,120]
[326849838,1715509901815,-610.04,0.00070136,120]
[326849839,1715509901824,-809.09,0.00070136,120]
[326849840,1715509901834,-616.93,0.00070136,120]
[326849841,1715509901843,-555.14,0.00070136,120]
[326849842,1715509901856,-663.17,0.00070136,60]
[326849843,1715509901866,-1965.65,0.00070136,120]
[326849844,1715509901876,-500.0,0.00070136,120]
[326849845,1715509901886,-1720.11,0.00070136,120]
[326849846,1715509901895,-1258.86,0.00070136,7]
[326849847,1715509901904,-531.16,0.00070136,120]
[326849848,1715509901915,-500.0,0.00070136,120]
[326849849,1715509901926,-1275.8,0.00070136,120]
[326849850,1715509901938,-1330.34,0.00070136,120]
[326849851,1715509901948,-1477.44,0.00070136,120]
[326849852,1715509901958,-500.0,0.00070136,120]
[326849853,1715509901967,-500.0,0.00070136,120]
[326849854,1715509901976,-1415.41,0.00070136,120]
[326849855,1715509901986,-790.3,0.00070136,120]
[326849856,1715509901996,-500.0,0.00070136,120]
[326849857,1715509902009,-1299.65,0.00070136,120]
[326849858,1715509902019,-631.96,0.00070136,120]
[326849859,1715509902028,-775.43,0.00070136,120]
[326849860,1715509902038,-500.0,0.00070136,120]
[326849861,1715509902047,-4428.92,0.00070136,120]
[326849862,1715509902056,-974.56,0.00070136,120]
[326849863,1715509902066,-1052.97,0.00070136,120]
[326849864,1715509902075,-3584.43,0.00070136,120]
[326849865,1715509902084,-721.17,0.00070136,120]
[326849866,1715509902093,-661.04,0.00070136,120]
[326849867,1715509902102,-625.85,0.00070136,120]
[326849868,1715509902111,-614.26,0.00070136,120]
[326849869,1715509902121,-980.18,0.00070136,120]
[326849870,1715509902131,-1131.83,0.00070136,120]
[326849871,1715509902140,-583.64,0.00070136,120]
[326849872,1715509902149,-513.88,0.00070136,120]
[326849873,1715509902161,-5121.64,0.00070136,120]
[326849874,1715509902170,-2410.3,0.00070136,120]
[326849875,1715509902179,-1457.89,0.00070136,120]
[326849876,1715509902188,-719.29,0.00070136,120]
[326849877,1715509902198,-1228.7,0.00070136,120]
[326849878,1715509902212,-500.0,0.00070136,120]
[326849879,1715509902222,-1264.94,0.00070136,120]
[326849880,1715509902231,-1513.78,0.00070136,120]
[326849881,1715509902239,-673.28,0.00070136,120]
[326849882,1715509902250,-694.76,0.00070136,120]
[326849883,1715509902259,-1272.39,0.00070136,120]
[326849884,1715509902269,-2272.31,0.00070136,120]
[326849885,1715509902281,-254.09,0.00070136,120]
[326849886,1715509902290,-11483.2,0.00070136,120]
[326849887,1715509902299,-500.0,0.00070136,7]
[326849888,1715509902310,-606.15,0.00070136,120]
[326849889,1715509902319,-765.03,0.00070136,120]
[326849890,1715509902331,-253.02850062,0.00070136,120]
[326849891,1715509902340,-910.45,0.00070136,120]
[326849892,1715509902350,-1594.77,0.00070136,120]
[326849893,1715509902360,-749.73,0.00070136,120]
[326849894,1715509902371,-1094.1,0.00070136,120]
[326849895,1715509902381,-760.68,0.00070136,120]
[326849896,1715509902392,-1439.15,0.00070136,120]
[326849897,1715509902401,-728.36,0.00070136,120]
[326849898,1715509902411,-554.07,0.00070136,120]
[326849899,1715509902421,-851.93,0.00070136,120]
[326849900,1715509902431,-21061.66,0.00070136,120]
[326849901,1715509902441,-1275.67,0.00070136,120]
[326849902,1715509902450,-697.89,0.00070136,120]
[326849903,1715509902459,-1584.34,0.00070136,120]
[326849904,1715509902468,-1080.54,0.00070136,120]
[326849905,1715509902477,-500.0,0.00070136,120]
[326849906,1715509902486,-2500.0,0.000709,120]
[326849907,1715509902495,-151.0,0.00070932,120]
[326849908,1715509902504,-500.0,0.00071232,120]
[326849909,1715509902513,-568.7975086,0.00071232,120]
[326849910,1715509902523,-792.18,0.00071232,120]
[326849911,1715509902531,-700.0,0.00071232,120]
[326849912,1715509902541,-500.0,0.00071232,120]
[326849913,1715509902551,-500.0,0.00071232,120]
[326849914,1715509902561,-687.88,0.00071232,120]
[326849915,1715509902569,-1184.42,0.00071232,120]
[326849916,1715509902579,-622.05,0.00071232,120]
[326849917,1715509902590,-500.0,0.00071232,120]
[326849918,1715509902600,-1188.88,0.00071232,120]
[326849919,1715509902610,-664.65,0.00071232,120]
[326849920,1715509902619,-169.57051643,0.00071232,120]
[326849921,1715509902628,-706.45,0.00071232,120]
[326849922,1715509902637,-589.94,0.00071232,120]
[326849923,1715509902646,-500.0,0.00071232,120]
[326849924,1715509902656,-230.95605943,0.00071232,120]
[326849925,1715509902667,-718.87,0.00071232,120]
[326849926,1715509902676,-668.81,0.00071232,120]
[326849927,1715509902686,-1198.11,0.00071232,120]
[326849928,1715509902695,-859.74,0.00071232,120]
[326849929,1715509902705,-1019.78,0.00071232,120]
[326849930,1715509902714,-1222.61,0.00071232,120]
[326849931,1715509902723,-500.0,0.00071232,120]
[326849932,1715509902732,-1076.09,0.00071232,4]
[326849933,1715509902741,-777.18,0.00071232,120]
[326849934,1715509902750,-623.85,0.00071232,120]
[326849935,1715509902760,-300.0,0.00071232,7]
[326849936,1715509902769,-879.42,0.00071232,120]
[326849937,1715509902778,-500.0,0.00071232,120]
[326849938,1715509902787,-1022.56,0.00071232,120]
[326849939,1715509902803,-1415.7,0.00071232,120]
[326849940,1715509902813,-702.94,0.00071232,120]
[326849941,1715509902823,-676.96,0.00071232,120]
[326849942,1715509902832,-1146.59,0.00071232,120]
[326849943,1715509902841,-846.45,0.00071232,120]
[326849944,1715509902851,-506.08,0.00071232,120]
[326849945,1715509902860,-694.21,0.00071232,120]
[326849946,1715509902869,-534.57,0.00071232,120]
[326849947,1715509902878,-628.13,0.00071232,120]
[326849948,1715509902888,-563.98,0.00071232,120]
[326849949,1715509902897,-500.0,0.00071232,120]
[326849950,1715509902908,-500.0,0.00071232,120]
[326849951,1715509902918,-1333.29,0.00071232,120]
[326849952,1715509902927,-2080.97,0.00071232,120]
[326849953,1715509902936,-697.5,0.00071232,120]
[326849954,1715509902946,-500.0,0.00071232,120]
[326849955,1715509902955,-1146.84,0.00071232,120]
[326849956,1715509902964,-500.0,0.00071232,120]
[326849957,1715509902975,-361.36988791,0.00071232,120]
[326849958,1715509902984,-1062.31,0.00071232,120]
[326849959,1715509902993,-887.25,0.00071232,120]
[326849960,1715509903003,-500.0,0.00071232,120]
[326849961,1715509903012,-884.99,0.00071232,120]
[326849962,1715509903021,-1945.84,0.00071232,120]
[326849963,1715509903031,-1101.29,0.00071232,120]
[326849964,1715509903040,-683.11,0.00071232,120]
[326849965,1715509903049,-500.0,0.00071232,120]
[326849966,1715509903059,-325.68547477,0.00071232,120]
[326849967,1715509903068,-634.75,0.00071232,120]
[326849968,1715509903077,-1202.07,0.00071232,120]
[326849969,1715509903086,-362.36383444,0.00071232,120]
[326849970,1715509903095,-652.77,0.00071232,120]
[326849971,1715509903104,-665.8,0.00071232,120]
[326849972,1715509903114,-2405.12,0.00071232,120]
[326849973,1715509903123,-1296.67,0.00071232,120]
[326849974,1715509903132,-500.0,0.00071232,120]
[326849975,1715509903141,-515.15,0.00071232,120]
[326849976,1715509903152,-1711.77,0.00071232,120]
[326849977,1715509903162,-500.0,0.00071232,120]
[326849978,1715509903171,-634.68,0.00071232,120]
[326849979,1715509903181,-674.93,0.00071232,120]
[326849980,1715509903190,-662.7,0.00071232,120]
[326849981,1715509903202,-669.18,0.00071232,120]
[326849982,1715509903215,-672.84,0.00071232,120]
[326849983,1715509903224,-500.0,0.00071232,120]
[326849984,1715509903233,-1082.38,0.00071232,120]
[326849985,1715509903242,-500.0,0.00071232,120]
[326849986,1715509903252,-2510.37,0.00071232,120]
[326849987,1715509903261,-4167.16,0.00071232,120]
[326849988,1715509903270,-1216.89,0.00071232,7]
[326849989,1715509903279,-568.37,0.00071232,120]
[326849990,1715509903289,-254.32709986,0.00071232,120]
[326849991,1715509903299,-634.17,0.00071232,120]
[326849992,1715509903308,-711.19,0.00071232,120]
[326849993,1715509903318,-645.64,0.00071232,120]
[326849994,1715509903327,-634.59,0.00071232,120]
[326849995,1715509903336,-522.61,0.00071232,120]
[326849996,1715509903345,-1199.73,0.00071232,120]
[326849997,1715509903354,-852.85,0.00071232,120]
[326849998,1715509903363,-500.0,0.00071232,120]
[326849999,1715509903372,-625.2,0.00071232,120]
[326850000,1715509903382,-728.74,0.00071232,120]
[326850001,1715509903390,-501.04,0.00071232,120]
[326850002,1715509903399,-588.33,0.00071232,120]
[326850003,1715509903410,-500.0,0.00071232,120]
[326850004,1715509903419,-1576.44,0.00071232,120]
[326850005,1715509903428,-500.0,0.00071232,120]
[326850006,1715509903436,-642.78,0.00071232,120]
[326850007,1715509903445,-500.0,0.00071232,120]
[326850008,1715509903455,-1474.83,0.00071232,120]
[326850009,1715509903464,-500.0,0.00071232,120]
[326850010,1715509903473,-1138.94,0.00071232,120]
[326850011,1715509903483,-500.0,0.00071232,120]
[326850012,1715509903492,-2052.53,0.00071232,120]
[326850013,1715509903501,-3343.91,0.00071232,120]
[326850014,1715509903510,-500.0,0.00071232,120]
[326850015,1715509903519,-1280.34,0.00071232,120]
[326850016,1715509903528,-589.15,0.00071232,120]
[326850017,1715509903537,-990.89,0.00071232,120]
[326850018,1715509903547,-1022.63,0.00071232,120]
[326850019,1715509903558,-1377.96,0.00071232,120]
[326850020,1715509903567,-849.72,0.00071232,120]